[Event "Cracovia Festival-A 2023"]
[Site "Krakow"]
[Date "2024.01.02"]
[Round "6.18"]
[White "Steindl, Johannes"]
[Black "Vasynda, Oleksandr"]
[Result "1-0"]
[ECO "B33"]
[WhiteElo "2334"]
[BlackElo "2153"]
[Annotator "RC"]
[PlyCount "111"]
[EventDate "2023.12.24"]
[EventType "swiss"]
[EventCountry "POL"]
[SourceTitle "playchess.com"]
[Source "ChessBase"]
[SourceQuality "1"]
[TimeControl "40/5400+30:1800+30"]

1. e4 {[%emt 0:05:14]} c5 {[%emt 0:00:14]} 2. Nf3 {[%emt 0:00:03]} Nc6 {[%emt 0:00:07]} 3. d4 {[%emt 0:00:16]} cxd4 {[%emt 0:00:09]} 4. Nxd4 {[%emt 0:00:04]} Nf6 {[%emt 0:00:07]} 5. Nc3 {[%emt 0:00:03]} g6 {[%emt 0:00:07]} 6. Nxc6 {[%emt 0:00:05]} dxc6 {[%emt 0:00:04]} 7. Qxd8+ {[%emt 0:00:04]} Kxd8 {[%emt 0:00:06]} 8. Bc4 {[%emt 0:00:04]} Ke8 {[%emt 0:00:16]} 9. e5 {[%emt 0:00:05]} Nd7 {[%emt 0:00:06]} 10. e6 {[%emt 0:00:04]} fxe6 {[%emt 0:00:07]} 11. Bxe6 {[%emt 0:00:03]} Bg7 {[%emt 0:00:04]} 12. Be3 {[%emt 0:00:03]} Nf8 {[%emt 0:00:09]} 13. Bb3 {[%emt 0:00:06]} Be6 {[%emt 0:00:24]} 14. O-O-O {[%emt 0:00:06]} Bxc3 {[%emt 0:03:23]} 15. bxc3 {[%emt 0:00:06]} Kf7 16. Rd4 {[%emt 0:10:17]} Bxb3 {[%emt 0:08:08]} 17. Rf4+ {[%emt 0:02:15]} Ke8 {[%emt 0:00:09]} 18. axb3 {[%emt 0:00:04]} Nd7 {[%emt 0:12:25]} 19. Re1 {[%emt 0:03:54]} Rf8 {[%emt 0:01:28]} 20. Re4 {[%emt 0:01:04]} Nf6 {[%emt 0:01:21]} 21. Re6 {[%emt 0:00:45]} Kd7 {[%emt 0:06:09]} 22. Bc5 {[%emt 0:00:28]} Ng8 {[%emt 0:00:14]} 23. R6e3 {[%emt 0:05:48]} Rfe8 {[%emt 0:01:25]} 24. Rd3+ {[%emt 0:05:50]} Kc7 {[%emt 0:00:23]} 25. Rh3 {[%emt 0:00:08]} h6 {[%emt 0:03:41]} 26. f4 {[%emt 0:00:41]} Rf8 {[%emt 0:01:54]} 27. Rg3 {[%emt 0:07:23]} Rxf4 {[%emt 0:01:21]} 28. Rxg6 {[%emt 0:00:05]} Rf7 {[%emt 0:00:53]} 29. g4 {[%emt 0:11:38]} b6 {[%emt 0:08:41]} 30. Bd4 {[%emt 0:00:31]} Rd8 {[%emt 0:00:42]} 31. b4 {[%emt 0:01:23]} Kd7 {[%emt 0:05:33]} 32. Rd1 {[%emt 0:03:12]} Kc8 {[%emt 0:01:02]} 33. Rxc6+ {[%emt 0:00:24]} Kb7 {[%emt 0:00:05]} 34. Rg6 {[%emt 0:01:34]} Nf6 {[%emt 0:00:20]} 35. Rf1 {[%emt 0:00:36]} Rdf8 {[%emt 0:00:28]} 36. h3 {[%emt 0:01:07]} Ne4 {[%emt 0:00:29]} 37. Rxf7 {[%emt 0:01:36]} Rxf7 {[%emt 0:00:01]} 38. Rxh6 {[%emt 0:00:07]} Rf1+ {[%emt 0:00:06]} 39. Kb2 {[%emt 0:00:03]} Nd2 {[%emt 0:00:11]} 40. Re6 {[%emt 0:00:00]} Rb1+ {[%emt 0:00:00]} 41. Ka2 {[%emt 0:00:38]} Rc1 {[%emt 0:00:47]} 42. b5 {[%emt 0:02:51]} Kc7 {[%emt 0:00:38]} 43. Rxe7+ {[%emt 0:14:20]} Kd6 {[%emt 0:00:06]} 44. Rxa7 {[%emt 0:00:16]} Rxc2+ {[%emt 0:00:40]} 45. Ka1 {[%emt 0:02:22]} Kd5 {[%emt 0:01:15]} 46. Ra2 {[%emt 0:01:53]} Rc1+ {[%emt 0:00:15]} 47. Kb2 {[%emt 0:00:05]} Rh1 {[%emt 0:00:07]} 48. g5 {[%emt 0:06:50]} Rh2 {[%emt 0:12:00]} 49. g6 {[%emt 0:00:38]} Nc4+ {[%emt 0:00:49]} 50. Kb3 {[%emt 0:00:33]} Na5+ {[%emt 0:00:13]} 51. Rxa5 {[%emt 0:00:08]} bxa5 {[%emt 0:00:04]} 52. g7 {[%emt 0:00:06]} Rg2 {[%emt 0:00:04]} 53. b6 {[%emt 0:01:25]} a4+ {[%emt 0:00:20]} 54. Ka3 {[%emt 0:00:34]} Kc6 55. h4 {[%emt 0:00:27]} Kb7 {[%emt 0:01:12]} 56. h5 {[%emt 0:00:14]} 1-0

[Event "Cracovia Festival-A 2023"]
[Site "Krakow"]
[Date "2024.01.02"]
[Round "6.19"]
[White "van der Merwe, Alexander"]
[Black "Suder, Jakub"]
[Result "0-1"]
[ECO "B33"]
[WhiteElo "2113"]
[BlackElo "2312"]
[Annotator "RC"]
[PlyCount "142"]
[EventDate "2023.12.24"]
[EventType "swiss"]
[EventCountry "POL"]
[SourceTitle "playchess.com"]
[Source "ChessBase"]
[SourceQuality "1"]
[TimeControl "40/5400+30:1800+30"]

1. e4 {[%emt 0:00:02]} c5 {[%emt 0:03:41]} 2. Nf3 {[%emt 0:00:16]} e6 {[%emt 0:00:02]} 3. d4 {[%emt 0:00:14]} cxd4 {[%emt 0:00:05]} 4. Nxd4 {[%emt 0:00:05]} Nc6 {[%emt 0:00:03]} 5. Nc3 {[%emt 0:00:24]} Nf6 {[%emt 0:00:05]} 6. Ndb5 {[%emt 0:00:31]} d6 {[%emt 0:00:07]} 7. Bf4 {[%emt 0:00:10]} e5 {[%emt 0:00:05]} 8. Bg5 {[%emt 0:00:04]} a6 {[%emt 0:00:07]} 9. Na3 {[%emt 0:00:04]} Be6 {[%emt 0:00:05]} 10. Nc4 {[%emt 0:00:39]} Rb8 {[%emt 0:00:06]} 11. Nd5 {[%emt 0:01:33]} Bxd5 {[%emt 0:00:13]} 12. exd5 {[%emt 0:00:09]} Ne7 {[%emt 0:01:33]} 13. Bxf6 {[%emt 0:01:08]} gxf6 {[%emt 0:00:08]} 14. a4 {[%emt 0:00:15]} Rc8 {[%emt 0:06:47]} 15. a5 {[%emt 0:07:45]} Bg7 {[%emt 0:03:55]} 16. Nb6 {[%emt 0:04:57]} Rc7 {[%emt 0:02:26]} 17. Qg4 {[%emt 0:05:52]} O-O {[%emt 0:07:42]} 18. Bd3 {[%emt 0:03:39]} e4 {[%emt 0:12:49]} 19. Qxe4 {[%emt 0:03:29]} f5 {[%emt 0:00:08]} 20. Qb4 {[%emt 0:00:53]} Ng6 {[%emt 0:02:25]} 21. O-O-O {[%emt 0:05:52]} Qf6 {[%emt 0:09:11]} 22. Kb1 {[%emt 0:07:55]} Rd8 {[%emt 0:01:51]} 23. Rhe1 {[%emt 0:05:09]} Rc5 {[%emt 0:04:08]} 24. c3 {[%emt 0:03:38]} Ne5 {[%emt 0:02:10]} 25. Bf1 {[%emt 0:03:31]} f4 {[%emt 0:01:42]} 26. f3 {[%emt 0:02:44]} Qg6+ {[%emt 0:09:02]} 27. Re4 {[%emt 0:03:51]} Rc7 {[%emt 0:02:37]} 28. Ka2 {[%emt 0:01:34]} Rc5 {[%emt 0:00:24]} 29. Na4 {[%emt 0:02:06]} Rc7 {[%emt 0:00:40]} 30. Rxf4 {[%emt 0:02:35]} Qc2 {[%emt 0:03:38]} 31. Qb3 {[%emt 0:02:37]} Qg6 {[%emt 0:01:12]} 32. Re4 {[%emt 0:01:15]} Qh6 {[%emt 0:02:47]} 33. h3 {[%emt 0:02:45]} f5 {[%emt 0:00:15]} 34. Ree1 {[%emt 0:04:18]} Qh4 {[%emt 0:00:09]} 35. Qb4 {[%emt 0:03:12]} Qxb4 {[%emt 0:03:26]} 36. cxb4 {[%emt 0:00:04]} Rc2 {[%emt 0:01:02]} 37. Kb3 {[%emt 0:02:39]} Rdc8 {[%emt 0:02:01]} 38. Nc3 {[%emt 0:04:01]} Rf2 {[%emt 0:00:26]} 39. Re2 {[%emt 0:01:09]} Rxe2 {[%emt 0:00:09]} 40. Bxe2 {[%emt 0:00:00]} Kf7 {[%emt 0:00:00]} 41. b5 {[%emt 0:03:38]} Nd7 {[%emt 0:00:37]} 42. Na4 {[%emt 0:09:26]} axb5 {[%emt 0:04:24]} 43. Bxb5 {[%emt 0:04:50]} Nf6 {[%emt 0:02:18]} 44. Bd3 {[%emt 0:02:42]} Ra8 {[%emt 0:01:35]} 45. Bxf5 {[%emt 0:01:33]} Rxa5 {[%emt 0:00:06]} 46. Be6+ {[%emt 0:00:08]} Kg6 {[%emt 0:00:25]} 47. Kb4 {[%emt 0:00:45]} Ra8 {[%emt 0:00:10]} 48. Rc1 {[%emt 0:00:36]} Nh5 {[%emt 0:01:01]} 49. Rc7 {[%emt 0:10:46]} Nf4 {[%emt 0:01:57]} 50. Nc3 {[%emt 0:04:27]} Nd3+ {[%emt 0:01:28]} 51. Kb3 {[%emt 0:00:43]} Be5 {[%emt 0:01:21]} 52. g4 {[%emt 0:01:09]} Kg5 {[%emt 0:00:29]} 53. Rf7 {[%emt 0:02:49]} Kh4 {[%emt 0:01:11]} 54. Rxh7+ {[%emt 0:01:19]} Kg3 {[%emt 0:00:10]} 55. g5 {[%emt 0:00:46]} Nf4 {[%emt 0:01:38]} 56. h4 {[%emt 0:01:55]} b5 {[%emt 0:00:17]} 57. h5 {[%emt 0:01:35]} b4 {[%emt 0:00:03]} 58. Na4 {[%emt 0:01:19]} Ne2 {[%emt 0:00:05]} 59. Nb6 {[%emt 0:01:23]} Nd4+ {[%emt 0:01:59]} 60. Kxb4 {[%emt 0:01:36]} Nc2+ {[%emt 0:01:21]} 61. Kc4 {[%emt 0:00:33]} Rb8 {[%emt 0:01:15]} 62. Nd7 {[%emt 0:00:26]} Ne3+ {[%emt 0:01:04]} 63. Kd3 {[%emt 0:00:36]} Rb3+ {[%emt 0:00:01]} 64. Ke2 {[%emt 0:01:17]} Bf4 {[%emt 0:02:26]} 65. g6 {[%emt 0:01:29]} Rxb2+ {[%emt 0:00:28]} 66. Kd3 {[%emt 0:00:26]} Rb3+ {[%emt 0:08:08]} 67. Kd4 {[%emt 0:00:07]} Nf1 {[%emt 0:13:51]} 68. g7 {[%emt 0:02:03]} Nd2 {[%emt 0:00:41]} 69. g8=Q+ {[%emt 0:00:07]} Kf2 {[%emt 0:00:04]} 70. Qg1+ {[%emt 0:01:24]} Kxg1 {[%emt 0:00:10]} 71. Rg7+ {[%emt 0:00:29]} Kf2 {[%emt 0:00:13]} 0-1

[Event "Cracovia Festival-A 2023"]
[Site "Krakow"]
[Date "2024.01.02"]
[Round "6.20"]
[White "Karolczuk, Iwo"]
[Black "Keinanen, Anastasia"]
[Result "1-0"]
[ECO "A08"]
[WhiteElo "2365"]
[BlackElo "2227"]
[Annotator "RC"]
[PlyCount "133"]
[EventDate "2023.12.24"]
[EventType "swiss"]
[EventCountry "POL"]
[SourceTitle "playchess.com"]
[Source "ChessBase"]
[SourceQuality "1"]
[TimeControl "40/5400+30:1800+30"]

1. Nf3 {[%emt 0:02:48]} d5 {[%emt 0:00:48]} 2. g3 {[%emt 0:00:26]} c5 {[%emt 0:00:33]} 3. Bg2 {[%emt 0:00:06]} Nf6 {[%emt 0:00:06]} 4. O-O {[%emt 0:00:08]} e6 {[%emt 0:00:03]} 5. c4 {[%emt 0:01:53]} d4 {[%emt 0:03:23]} 6. e3 {[%emt 0:00:09]} Nc6 {[%emt 0:00:05]} 7. exd4 {[%emt 0:00:05]} cxd4 {[%emt 0:01:08]} 8. d3 {[%emt 0:00:06]} Bd6 {[%emt 0:01:06]} 9. Na3 {[%emt 0:00:32]} a6 {[%emt 0:02:31]} 10. Nc2 {[%emt 0:00:37]} e5 {[%emt 0:02:17]} 11. Re1 {[%emt 0:04:03]} O-O {[%emt 0:00:53]} 12. b4 {[%emt 0:01:11]} Re8 {[%emt 0:07:30]} 13. Rb1 {[%emt 0:10:30]} h6 {[%emt 0:06:16]} 14. Nd2 {[%emt 0:12:20]} Bf5 {[%emt 0:11:33]} 15. Qe2 {[%emt 0:08:54]} Qd7 {[%emt 0:17:11]} 16. a4 {[%emt 0:07:31]} Bf8 {[%emt 0:17:57]} 17. b5 {[%emt 0:16:25]} axb5 {[%emt 0:00:41]} 18. axb5 {[%emt 0:00:09]} Nd8 {[%emt 0:04:55]} 19. Qf1 {[%emt 0:05:34]} Ra4 {[%emt 0:06:46]} 20. Nb3 {[%emt 0:10:33]} Rxc4 {[%emt 0:05:50]} 21. dxc4 {[%emt 0:00:15]} Bxc2 {[%emt 0:00:03]} 22. Rb2 {[%emt 0:00:24]} d3 {[%emt 0:00:03]} 23. Rxc2 {[%emt 0:04:57]} dxc2 {[%emt 0:00:04]} 24. Qe2 {[%emt 0:00:16]} Bb4 {[%emt 0:03:39]} 25. Rf1 {[%emt 0:00:58]} Ne6 {[%emt 0:04:15]} 26. Qxc2 {[%emt 0:00:53]} Nd4 {[%emt 0:00:10]} 27. Qd3 {[%emt 0:02:29]} Rd8 {[%emt 0:00:14]} 28. Nxd4 {[%emt 0:03:10]} exd4 {[%emt 0:00:56]} 29. Bf4 {[%emt 0:00:22]} b6 {[%emt 0:01:06]} 30. Ra1 {[%emt 0:00:39]} Qe7 {[%emt 0:00:45]} 31. Bc6 {[%emt 0:00:38]} g5 {[%emt 0:01:20]} 32. Bd2 {[%emt 0:02:30]} Bxd2 {[%emt 0:00:47]} 33. Qxd2 {[%emt 0:00:08]} Ng4 {[%emt 0:00:40]} 34. Bd5 {[%emt 0:02:01]} Ne5 {[%emt 0:00:35]} 35. Kg2 {[%emt 0:01:19]} d3 {[%emt 0:00:54]} 36. Re1 {[%emt 0:00:28]} Qf6 {[%emt 0:00:44]} 37. f4 {[%emt 0:01:51]} gxf4 {[%emt 0:00:36]} 38. Qxf4 {[%emt 0:00:11]} Qxf4 {[%emt 0:00:22]} 39. gxf4 {[%emt 0:00:06]} d2 {[%emt 0:00:41]} 40. Rd1 {[%emt 0:00:00]} Nd3 {[%emt 0:00:00]} 41. Kf3 {[%emt 0:05:40]} Kg7 {[%emt 0:13:20]} 42. Rxd2 {[%emt 0:01:00]} Nb4 {[%emt 0:00:15]} 43. Rb2 {[%emt 0:05:30]} Nxd5 {[%emt 0:03:03]} 44. Rd2 {[%emt 0:00:42]} Rc8 {[%emt 0:07:42]} 45. cxd5 {[%emt 0:00:10]} Kf6 {[%emt 0:00:15]} 46. d6 {[%emt 0:08:23]} Ke6 {[%emt 0:00:10]} 47. d7 {[%emt 0:01:13]} Rd8 {[%emt 0:00:11]} 48. Kg4 {[%emt 0:01:45]} f6 {[%emt 0:03:38]} 49. Kh5 {[%emt 0:01:33]} Kf5 {[%emt 0:01:53]} 50. Rd4 {[%emt 0:00:34]} Ke6 {[%emt 0:00:19]} 51. Kxh6 {[%emt 0:01:03]} Kf7 {[%emt 0:01:30]} 52. Kh7 {[%emt 0:03:22]} f5 {[%emt 0:00:56]} 53. h4 {[%emt 0:00:30]} Kf6 {[%emt 0:00:46]} 54. Rd6+ {[%emt 0:00:55]} Kf7 {[%emt 0:00:18]} 55. Kh6 {[%emt 0:00:59]} Ke7 {[%emt 0:00:26]} 56. Rxb6 {[%emt 0:00:12]} Kxd7 {[%emt 0:00:33]} 57. Kg5 {[%emt 0:01:01]} Ke7 {[%emt 0:00:21]} 58. h5 {[%emt 0:00:08]} Kf7 {[%emt 0:00:28]} 59. h6 {[%emt 0:00:19]} Kg8 {[%emt 0:00:09]} 60. Rc6 {[%emt 0:00:30]} Kh7 {[%emt 0:01:17]} 61. Rc7+ {[%emt 0:00:31]} Kh8 {[%emt 0:00:11]} 62. b6 {[%emt 0:00:30]} Rg8+ {[%emt 0:00:56]} 63. Kxf5 {[%emt 0:00:11]} Rf8+ {[%emt 0:00:10]} 64. Ke4 {[%emt 0:00:08]} Re8+ {[%emt 0:00:17]} 65. Kf3 {[%emt 0:00:09]} Rg8 {[%emt 0:01:56]} 66. b7 {[%emt 0:00:53]} Rg7 {[%emt 0:00:16]} 67. hxg7+ {[%emt 0:00:11]} 1-0

[Event "Cracovia Festival-A 2023"]
[Site "Krakow"]
[Date "2024.01.02"]
[Round "6.21"]
[White "Gierulski, Kamil"]
[Black "Janzelj, Tim"]
[Result "1-0"]
[ECO "B12"]
[WhiteElo "2223"]
[BlackElo "2441"]
[Annotator "RC"]
[PlyCount "77"]
[EventDate "2023.12.24"]
[EventType "swiss"]
[EventCountry "POL"]
[SourceTitle "playchess.com"]
[Source "ChessBase"]
[SourceQuality "1"]
[TimeControl "40/5400+30:1800+30"]

1. e4 {[%emt 0:00:02]} c6 {[%emt 0:05:00]} 2. d4 {[%emt 0:00:04]} d5 {[%emt 0:00:06]} 3. e5 {[%emt 0:00:03]} Bf5 {[%emt 0:00:09]} 4. Nf3 {[%emt 0:00:04]} e6 {[%emt 0:00:06]} 5. Be2 {[%emt 0:00:02]} Ne7 {[%emt 0:01:52]} 6. c3 {[%emt 0:00:04]} h6 {[%emt 0:00:31]} 7. Nbd2 {[%emt 0:06:40]} Nd7 {[%emt 0:01:17]} 8. b4 {[%emt 0:00:36]} g5 {[%emt 0:00:20]} 9. O-O {[%emt 0:01:37]} Ng6 {[%emt 0:00:55]} 10. Nb3 {[%emt 0:00:25]} f6 {[%emt 0:03:49]} 11. Ne1 {[%emt 0:03:25]} Nf4 {[%emt 0:03:30]} 12. Bxf4 {[%emt 0:04:50]} gxf4 {[%emt 0:00:03]} 13. Bd3 {[%emt 0:02:09]} Qe7 {[%emt 0:06:20]} 14. Bxf5 {[%emt 0:03:49]} exf5 {[%emt 0:00:02]} 15. Qh5+ {[%emt 0:00:36]} Qf7 {[%emt 0:02:21]} 16. Qe2 {[%emt 0:00:02]} fxe5 {[%emt 0:08:37]} 17. dxe5 {[%emt 0:00:07]} Qg7 {[%emt 0:03:08]} 18. Nd4 {[%emt 0:06:22]} O-O-O {[%emt 0:03:37]} 19. e6 {[%emt 0:01:58]} Ne5 {[%emt 0:02:44]} 20. Nxf5 {[%emt 0:00:30]} Qf6 {[%emt 0:00:21]} 21. e7 {[%emt 0:01:44]} Bxe7 {[%emt 0:00:21]} 22. Nxe7+ {[%emt 0:00:03]} Kb8 {[%emt 0:04:19]} 23. Nf3 {[%emt 0:09:00]} Nxf3+ {[%emt 0:01:01]} 24. Qxf3 {[%emt 0:00:16]} Qxe7 {[%emt 0:03:08]} 25. Qxf4+ {[%emt 0:00:04]} Ka8 {[%emt 0:00:02]} 26. Rae1 {[%emt 0:02:15]} Qg7 {[%emt 0:01:24]} 27. Re5 {[%emt 0:00:28]} h5 {[%emt 0:04:49]} 28. h4 {[%emt 0:07:19]} Rhg8 {[%emt 0:01:34]} 29. g3 {[%emt 0:00:18]} Rdf8 {[%emt 0:00:32]} 30. Qd4 {[%emt 0:00:25]} Qd7 {[%emt 0:02:39]} 31. Rfe1 {[%emt 0:10:13]} Qf7 {[%emt 0:06:45]} 32. Qe3 {[%emt 0:03:04]} a6 {[%emt 0:02:04]} 33. a4 {[%emt 0:02:12]} Rg4 {[%emt 0:04:33]} 34. Re2 {[%emt 0:08:34]} d4 {[%emt 0:02:29]} 35. cxd4 {[%emt 0:00:51]} Qc4 {[%emt 0:00:10]} 36. b5 {[%emt 0:06:09]} Rxd4 {[%emt 0:05:28]} 37. b6 {[%emt 0:01:59]} Qxa4 {[%emt 0:03:02]} 38. Re8+ {[%emt 0:01:04]} Rd8 {[%emt 0:00:02]} 39. Rxf8 {[%emt 0:00:25]} 1-0

[Event "Cracovia Festival-A 2023"]
[Site "Krakow"]
[Date "2024.01.02"]
[Round "6.22"]
[White "Pyrig, Roman"]
[Black "Sofronie, Iulian"]
[Result "1-0"]
[ECO "C77"]
[WhiteElo "2154"]
[BlackElo "2438"]
[Annotator "RC"]
[PlyCount "79"]
[EventDate "2023.12.24"]
[EventType "swiss"]
[EventCountry "POL"]
[SourceTitle "playchess.com"]
[Source "ChessBase"]
[SourceQuality "1"]
[TimeControl "40/5400+30:1800+30"]

1. e4 {[%emt 0:05:06]} e5 {[%emt 0:01:12]} 2. Nf3 Nc6 3. Bb5 {[%emt 0:00:58]} a6 {[%emt 0:00:35]} 4. Ba4 {[%emt 0:00:07]} Nf6 {[%emt 0:00:06]} 5. d3 {[%emt 0:00:07]} b5 {[%emt 0:00:07]} 6. Bb3 {[%emt 0:00:04]} Bc5 {[%emt 0:00:05]} 7. Nc3 {[%emt 0:00:03]} d6 {[%emt 0:00:10]} 8. Nd5 {[%emt 0:00:08]} h6 {[%emt 0:02:22]} 9. c3 {[%emt 0:00:02]} Ba7 {[%emt 0:06:29]} 10. Nxf6+ {[%emt 0:09:58]} Qxf6 {[%emt 0:00:06]} 11. Bd5 {[%emt 0:00:02]} Bd7 {[%emt 0:01:47]} 12. a4 {[%emt 0:00:25]} O-O {[%emt 0:02:50]} 13. Rg1 {[%emt 0:01:33]} Ne7 {[%emt 0:27:04]} 14. Bxa8 {[%emt 0:00:48]} Rxa8 {[%emt 0:00:03]} 15. axb5 {[%emt 0:00:36]} Bxb5 {[%emt 0:00:54]} 16. Be3 {[%emt 0:05:34]} Bxe3 {[%emt 0:04:27]} 17. fxe3 {[%emt 0:00:02]} a5 {[%emt 0:00:10]} 18. Qd2 {[%emt 0:01:42]} Bc6 {[%emt 0:00:16]} 19. c4 {[%emt 0:01:52]} a4 {[%emt 0:00:05]} 20. b3 {[%emt 0:00:03]} Qe6 {[%emt 0:02:03]} 21. g4 {[%emt 0:03:04]} Qd7 {[%emt 0:11:28]} 22. b4 {[%emt 0:04:55]} Bb7 {[%emt 0:00:15]} 23. Qc2 {[%emt 0:01:35]} Nc8 {[%emt 0:01:47]} 24. g5 {[%emt 0:01:39]} hxg5 {[%emt 0:01:07]} 25. Rxg5 {[%emt 0:00:54]} f6 {[%emt 0:00:23]} 26. Rg3 {[%emt 0:00:03]} f5 {[%emt 0:02:55]} 27. exf5 {[%emt 0:01:20]} Qxf5 {[%emt 0:00:04]} 28. e4 {[%emt 0:00:05]} Qf4 {[%emt 0:01:01]} 29. Ke2 {[%emt 0:09:08]} Ne7 {[%emt 0:01:33]} 30. Rxa4 {[%emt 0:02:46]} Rf8 {[%emt 0:00:18]} 31. Qd2 {[%emt 0:01:39]} Qf7 {[%emt 0:00:06]} 32. Qg5 {[%emt 0:05:24]} Nc6 {[%emt 0:00:22]} 33. Kd2 {[%emt 0:00:49]} Nd4 {[%emt 0:00:13]} 34. Nxd4 {[%emt 0:00:03]} exd4 {[%emt 0:00:12]} 35. Kc2 {[%emt 0:00:01]} Bxe4 {[%emt 0:00:39]} 36. Kb3 {[%emt 0:00:29]} d5 {[%emt 0:06:26]} 37. c5 {[%emt 0:03:03]} Bf5 {[%emt 0:10:01]} 38. Ra1 {[%emt 0:01:36]} Qf6 {[%emt 0:00:38]} 39. Qxf6 {[%emt 0:00:25]} Rxf6 {[%emt 0:00:04]} 40. b5 {[%emt 0:00:44]} 1-0

[Event "Cracovia Festival-A 2023"]
[Site "Krakow"]
[Date "2024.01.02"]
[Round "6.23"]
[White "Anwesh, Upadhyaya"]
[Black "Jaskolka, Tomasz"]
[Result "0-1"]
[ECO "A14"]
[WhiteElo "2350"]
[BlackElo "2222"]
[Annotator "RC"]
[PlyCount "46"]
[EventDate "2023.12.24"]
[EventType "swiss"]
[EventCountry "POL"]
[SourceTitle "playchess.com"]
[Source "ChessBase"]
[SourceQuality "1"]
[TimeControl "40/5400+30:1800+30"]

1. c4 {[%emt 0:16:34]} e6 {[%emt 0:00:15]} 2. Nf3 {[%emt 0:00:16]} d5 {[%emt 0:00:07]} 3. g3 {[%emt 0:00:42]} Nf6 {[%emt 0:00:20]} 4. Bg2 {[%emt 0:00:06]} Be7 {[%emt 0:00:14]} 5. O-O {[%emt 0:00:09]} O-O {[%emt 0:00:03]} 6. d4 {[%emt 0:00:42]} c6 {[%emt 0:01:05]} 7. Qc2 {[%emt 0:00:48]} b6 {[%emt 0:02:42]} 8. Nbd2 {[%emt 0:00:13]} Bb7 {[%emt 0:00:08]} 9. e4 {[%emt 0:00:13]} dxe4 {[%emt 0:00:05]} 10. Nxe4 {[%emt 0:00:05]} Nxe4 {[%emt 0:01:03]} 11. Qxe4 {[%emt 0:00:07]} Nd7 {[%emt 0:01:03]} 12. Rd1 {[%emt 0:01:10]} Qc8 {[%emt 0:01:36]} 13. Bf4 {[%emt 0:03:30]} Nf6 {[%emt 0:00:59]} 14. Qe2 {[%emt 0:00:45]} Rd8 {[%emt 0:00:57]} 15. Rac1 {[%emt 0:03:15]} Bf8 {[%emt 0:06:20]} 16. Bh3 {[%emt 0:04:33]} Qd7 {[%emt 0:02:49]} 17. Ne5 {[%emt 0:02:46]} Qe7 {[%emt 0:00:27]} 18. Re1 {[%emt 0:11:48]} Rxd4 {[%emt 0:09:29]} 19. Bg5 {[%emt 0:02:29]} h6 {[%emt 0:04:48]} 20. Bxf6 {[%emt 0:02:54]} gxf6 {[%emt 0:00:48]} 21. Nxf7 {[%emt 0:03:43]} e5 {[%emt 0:09:27]} 22. Rcd1 {[%emt 0:00:28]} c5 {[%emt 0:01:47]} 23. Rxd4 {[%emt 0:01:09]} cxd4 {[%emt 0:01:17]} 0-1

[Event "Cracovia Festival-A 2023"]
[Site "Krakow"]
[Date "2024.01.02"]
[Round "6.24"]
[White "Eke, Salih"]
[Black "Kucza, Karol"]
[Result "1/2-1/2"]
[ECO "D00"]
[WhiteElo "2217"]
[BlackElo "2343"]
[Annotator "RC"]
[PlyCount "70"]
[EventDate "2023.12.24"]
[EventType "swiss"]
[EventCountry "POL"]
[SourceTitle "playchess.com"]
[Source "ChessBase"]
[SourceQuality "1"]
[TimeControl "40/5400+30:1800+30"]

1. d4 {[%emt 0:07:16]} d5 {[%emt 0:00:11]} 2. Bf4 {[%emt 0:00:30]} Nf6 {[%emt 0:00:08]} 3. e3 {[%emt 0:00:06]} e6 {[%emt 0:01:31]} 4. c3 {[%emt 0:00:44]} Bd6 {[%emt 0:00:54]} 5. Bg3 {[%emt 0:01:07]} O-O {[%emt 0:00:45]} 6. Nd2 {[%emt 0:00:20]} c5 {[%emt 0:03:35]} 7. Bd3 {[%emt 0:00:45]} b6 {[%emt 0:00:17]} 8. Ngf3 {[%emt 0:00:40]} Ba6 {[%emt 0:00:21]} 9. Bxa6 {[%emt 0:03:06]} Nxa6 {[%emt 0:02:01]} 10. Ne5 {[%emt 0:02:08]} Bxe5 {[%emt 0:07:30]} 11. Bxe5 {[%emt 0:00:23]} Nb8 {[%emt 0:00:06]} 12. O-O {[%emt 0:10:39]} Nc6 {[%emt 0:00:19]} 13. Bg3 {[%emt 0:00:08]} Qe7 {[%emt 0:00:41]} 14. f4 {[%emt 0:01:01]} Ne8 {[%emt 0:01:51]} 15. Nf3 {[%emt 0:04:31]} Nd6 {[%emt 0:00:26]} 16. Bh4 {[%emt 0:00:12]} Qd7 17. Ne5 {[%emt 0:00:30]} Nxe5 18. fxe5 {[%emt 0:00:30]} Ne4 19. Qg4 {[%emt 0:00:30]} Kh8 20. Rf3 {[%emt 0:00:30]} f5 21. exf6 {[%emt 0:00:30]} gxf6 22. Raf1 {[%emt 0:00:30]} f5 23. Qf4 {[%emt 0:00:30]} Qg7 24. Rh3 {[%emt 0:00:30]} Rae8 25. Bg3 {[%emt 0:00:30]} e5 {[%emt 0:57:13]} 26. dxe5 {[%emt 0:19:41]} Nxg3 {[%emt 0:01:10]} 27. Rxg3 {[%emt 0:01:36]} Qxe5 {[%emt 0:00:06]} 28. Qxe5+ {[%emt 0:02:04]} Rxe5 {[%emt 0:00:09]} 29. Rf4 {[%emt 0:05:31]} Rg8 {[%emt 0:02:30]} 30. Rgf3 {[%emt 0:02:31]} Rg5 {[%emt 0:00:07]} 31. Kf2 {[%emt 0:02:38]} Kg7 {[%emt 0:00:07]} 32. h3 {[%emt 0:05:31]} Kf6 {[%emt 0:03:41]} 33. h4 {[%emt 0:16:01]} Rh5 {[%emt 0:01:26]} 34. g3 {[%emt 0:00:38]} Ke6 {[%emt 0:01:08]} 35. c4 {[%emt 0:02:11]} Rh6 {[%emt 0:01:04]} 1/2-1/2